bitfinex-derivatives/quotes_BNBF0:USTF0_20250908
["timestamp","ask_amount","ask_price","bid_price","bid_amount"]
[1757319745660,0.5,876.79,876.51,5.90548788]
[1757319749961,0.5,876.79,876.51,2.5698945]
[1757319750364,0.5,876.79,876.5,5.90548788]
[1757319750563,0.5,876.79,876.5,2.5698945]
[1757319750769,0.5,876.79,876.49,5.90548788]
[1757319752670,0.253,877.03,876.49,2.5698945]
[1757319752870,0.253,877.03,876.48,5.90548788]
[1757319754473,0.429,877.06,876.48,5.90548788]
[1757319754868,0.401,877.06,876.48,3.33559338]
[1757319755075,0.401,877.06,876.68,2.30925696]
[1757319755274,0.401,877.09,876.68,3.33559338]
[1757319755574,0.402,877.09,876.68,5.90548788]
[1757319755870,0.374,877.21,876.69,4.07067387]
[1757319756071,0.4,877.26,876.69,3.33559338]
[1757319756370,0.428,877.26,876.69,3.33559338]
[1757319756570,0.428,877.26,876.69,5.90548788]
[1757319756875,0.5,877.12,876.69,5.90548788]
[1757319757373,0.5,877.12,876.7,4.0702365]
[1757319757573,0.5,877.12,876.7,5.90548788]
[1757319762276,0.485,877.26,876.7,5.90548788]
[1757319762679,0.5,877.11,876.7,5.90548788]
[1757319764181,0.5,877.11,876.72,9.49766537]
[1757319765277,0.5,877.11,876.72,5.90548788]
[1757319767776,0.5,877.11,876.72,3.33559338]
[1757319770681,0.43,877.28,876.77,3.33559338]
[1757319770878,0.5,877.17,876.78,4.06917294]
[1757319771080,0.5,877.17,876.77,3.33559338]
[1757319771381,0.5,877.17,876.78,4.06913959]
[1757319771580,0.5,877.17,876.78,3.33559338]
[1757319771782,0.402,877.28,876.79,4.06913693]
[1757319772081,0.402,877.28,876.78,3.33559338]
[1757319772282,0.402,877.28,876.79,4.06914376]
[1757319772481,0.402,877.28,876.79,3.33559338]
[1757319772681,0.402,877.28,876.78,3.33559338]
[1757319773577,0.5,877.14,876.78,3.33559338]
[1757319776782,0.5,877.14,876.78,5.90548788]
[1757319782189,0.5,877.14,876.79,4.07142711]
[1757319782486,0.5,877.14,876.79,5.90548788]
[1757319782886,0.5,877.14,876.79,9.49766537]
[1757319785786,0.5,877.14,876.79,6.16207199]
[1757319785988,0.5,877.14,876.78,9.49766537]
[1757319790894,0.429,877.33,876.78,9.49766537]
[1757319797503,0.287,877.33,876.79,4.07419891]
[1757319797701,0.401,877.47,876.9,3.33559338]
[1757319798003,0.19865225,878.39,876.91,4.07391931]
[1757319798004,0.427,877.53,876.91,4.07391931]
[1757319798199,0.427,877.53,876.91,3.33559338]
[1757319798503,0.296,877.46,876.91,5.90548788]
[1757319799199,0.353,877.46,876.91,5.90548788]
[1757319799605,0.296,877.46,876.91,5.90548788]
[1757319800815,0.353,877.46,876.91,5.90548788]
[1757319807610,0.353,877.46,876.91,9.49766537]
[1757319811111,0.353,877.46,876.91,8.63982098]
[1757319811510,0.353,877.46,876.91,6.16207199]
[1757319811913,0.353,877.46,876.9,1.02633642]
[1757319811914,0.353,877.46,876.9,7.18840841]
[1757319812515,0.352,877.46,876.9,7.18840841]
[1757319812713,0.295,877.46,876.9,7.18840841]
[1757319813214,0.295,877.46,876.95,1.02633642]
[1757319813510,0.295,877.46,876.95,3.59623092]
[1757319813720,0.269,877.47,876.95,3.59623092]
[1757319813918,0.5,877.75,877.01,1.02633642]
[1757319814212,0.5,877.75,877.02,1.02633642]
[1757319814412,0.5,877.75,877.1,3.59623092]
[1757319814715,0.337,877.72,877.1,3.59623092]
[1757319815314,0.363,877.72,877.1,3.59623092]
[1757319815618,0.337,877.72,877.1,3.59623092]
[1757319815821,0.363,877.72,877.1,3.59623092]
[1757319816726,0.337,877.72,877.1,3.59623092]
[1757319817224,0.363,877.72,877.1,3.59623092]
[1757319817426,0.337,877.72,877.1,3.59623092]
[1757319818126,0.363,877.72,877.1,3.59623092]
[1757319819324,0.337,877.72,877.1,3.59623092]
[1757319819924,0.364,877.72,877.1,3.59623092]
[1757319822031,0.5,877.75,877.1,3.59623092]
[1757319823235,0.296,877.58,877.1,3.59623092]
[1757319825036,0.296,877.74,877.1,3.59623092]
[1757319825236,0.323,877.74,877.16,3.59623092]
[1757319825436,0.296,877.74,877.16,3.59623092]
[1757319825932,0.269,877.74,877.16,3.59623092]
[1757319826132,0.269,877.74,877.19,1.02633642]
[1757319826337,0.296,877.74,877.19,3.59623092]
[1757319826840,0.296,877.74,877.21,1.02633642]
[1757319827034,0.323,877.74,877.27,1.02633642]
[1757319827333,0.269,877.74,877.27,1.02633642]
[1757319827537,0.296,877.74,877.27,1.02633642]
[1757319827933,0.5,877.98,877.27,1.02633642]
[1757319828137,0.5,877.98,877.28,1.02633642]
[1757319828337,0.5,878.0,877.28,1.02633642]
[1757319828739,0.297,877.85,877.33,1.02633642]
[1757319829238,0.5,878.04,877.33,1.02633642]
[1757319829635,0.269,877.88,877.34,1.02633642]
[1757319829938,0.269,877.88,877.34,3.59623092]
[1757319830139,0.297,877.88,877.34,3.59623092]
[1757319831135,0.297,877.88,877.34,5.12874534]
[1757319831338,0.269,877.88,877.35,2.55885084]
[1757319832038,0.269,877.88,877.35,5.12874534]
[1757319832539,0.297,877.88,877.35,5.12874534]
[1757319832936,0.297,877.88,877.35,2.55885084]
[1757319835138,0.297,877.88,877.35,5.12874534]
[1757319836335,0.5,878.08,877.35,5.12874534]
[1757319836538,0.325,877.91,877.35,5.12874534]
[1757319837344,0.5,878.09,877.42,2.55885084]
[1757319837539,0.325,877.96,877.42,3.59623092]
[1757319837844,0.325,877.96,877.42,2.5698945]
[1757319838041,0.325,877.96,877.41,5.12874534]
[1757319838642,0.325,877.96,877.42,2.55885084]
[1757319839151,0.325,877.96,877.42,5.12874534]
[1757319839341,0.325,877.96,877.42,2.5698945]
[1757319839647,0.325,877.96,877.41,8.72092283]
[1757319841545,0.366,878.07,877.41,8.72092283]
[1757319841846,0.366,878.07,877.41,5.12874534]
[1757319842545,0.5,878.14,877.41,5.12874534]
[1757319842744,0.297,877.9,877.41,5.12874534]
[1757319843248,0.297,877.9,877.38,3.59217749]
[1757319843549,0.297,877.73,877.38,3.59217749]
[1757319843744,0.297,877.73,877.26,2.55885084]
[1757319844345,0.297,877.73,877.27,2.55885084]
[1757319845450,0.297,877.73,877.24,2.55885084]
[1757319845745,0.325,877.71,877.22,2.55885084]
[1757319846149,0.325,877.71,877.18,2.55885084]
[1757319846445,0.297,877.59,877.13,5.12874534]
[1757319846946,0.297,877.59,877.12,5.12874534]
[1757319847349,0.325,877.57,877.12,5.12874534]
[1757319847751,0.297,877.57,877.12,5.12874534]
[1757319848251,0.296,877.57,877.12,5.12874534]
[1757319851149,0.296,877.62,877.12,5.12874534]
[1757319851348,0.324,877.87,877.12,5.12874534]
[1757319852150,0.5,877.87,877.12,5.12874534]
[1757319852554,0.5,877.87,877.14,2.55885084]
[1757319852750,0.5,877.87,877.14,5.12874534]
[1757319853152,0.324,877.87,877.15,2.55885084]
[1757319853455,0.296,877.81,877.15,2.55885084]
[1757319853657,0.269,877.81,877.28,5.12874534]
[1757319853853,0.296,877.81,877.3,2.55885084]
[1757319854254,0.269,877.81,877.3,5.12874534]
[1757319854453,0.296,877.81,877.3,5.12874534]
[1757319854955,0.269,877.81,877.31,2.55885084]
[1757319855160,0.296,877.92,877.32,5.12874534]
[1757319856358,0.296,877.92,877.36,2.55885084]
[1757319856560,0.269,877.92,877.38,2.55885084]
[1757319856760,0.269,877.92,877.38,5.12874534]
[1757319857756,0.269,877.92,877.4,5.12874534]
[1757319857961,0.296,877.92,877.4,5.12874534]
[1757319858761,0.323,877.97,877.4,5.12874534]
[1757319858961,0.38,877.97,877.4,5.12874534]
[1757319859462,0.38,877.97,877.39,2.5698945]
[1757319859958,0.38,877.97,877.38,5.12874534]
[1757319860761,0.484,877.98,877.38,5.12874534]
[1757319861059,0.19865225,878.39,877.38,2.5698945]
[1757319861060,0.252,877.94,877.38,2.5698945]
[1757319861461,0.252,877.94,877.36,8.72092283]
[1757319862163,0.252,877.94,877.36,6.16207199]
[1757319862463,0.252,877.94,877.28,8.72092283]
[1757319863165,0.427,877.85,877.28,6.16207199]
[1757319863460,0.427,877.85,877.23,8.72092283]
[1757319864065,0.427,877.85,877.23,3.59217749]
[1757319864564,0.427,877.85,877.19,8.72092283]
[1757319871171,0.427,877.85,877.19,9.48876742]
[1757319876375,0.19865225,878.39,877.19,9.48876742]
[1757319877780,0.19865225,878.39,877.2,3.32669543]
[1757319877977,0.19865225,878.39,877.19,6.16207199]
[1757319877978,0.19865225,878.39,877.21,9.48876742]
[1757319881080,0.427,877.87,877.21,9.48876742]
[1757319887486,0.427,877.87,877.22,4.06417232]
[1757319887690,0.427,877.87,877.23,0.73743725]
[1757319887888,0.427,877.87,877.23,5.89658993]
[1757319888088,0.4,877.87,877.23,5.89658993]
[1757319888285,0.427,877.87,877.23,9.48876742]
[1757319888586,0.4,877.87,877.23,9.48876742]
[1757319888788,0.5,877.97,877.24,4.06411198]
[1757319888992,0.5,877.97,877.24,5.89658993]
[1757319889193,0.427,878.0,877.29,3.32669543]
[1757319889489,0.427,878.0,877.29,9.48876742]
[1757319889686,0.484,878.0,877.29,9.48876742]
[1757319889891,0.427,878.0,877.33,5.89658993]
[1757319890086,0.427,878.0,877.37,3.32669543]
[1757319890287,0.427,878.0,877.38,4.06390436]
[1757319890492,0.427,878.0,877.38,9.48876742]
[1757319890791,0.484,878.0,877.38,9.48876742]
[1757319895090,0.427,878.0,877.38,9.48876742]
[1757319896192,0.484,878.0,877.38,9.48876742]
[1757319900497,0.251,877.95,877.38,9.48876742]
[1757319900997,0.426,878.0,877.38,9.48876742]
[1757319901295,0.483,878.0,877.38,9.48876742]
[1757319903393,0.483,878.0,877.38,3.59217749]
[1757319903697,0.25,877.95,877.38,3.59217749]
[1757319903897,0.25,877.95,877.32,9.48876742]
[1757319904296,0.25,877.95,877.32,6.16207199]
[1757319904496,0.425,877.86,877.32,3.59217749]
[1757319904992,0.425,877.86,877.28,2.5698945]
[1757319904993,0.451,877.86,877.22,9.48876742]
[1757319905198,0.425,877.86,877.22,9.48876742]
[1757319906097,0.425,877.86,877.21,9.48876742]
[1757319907598,0.425,877.86,877.21,3.59217749]
[1757319908101,0.425,877.86,877.15,5.89658993]
[1757319910604,0.425,877.86,877.15,2.5698945]
[1757319910804,0.425,877.86,877.11,5.89658993]
[1757319913903,0.425,877.86,877.11,3.32669543]
[1757319917001,0.399,877.73,877.14,3.32669543]
[1757319917206,0.399,877.73,877.15,4.06420677]
[1757319917502,0.399,877.8,877.29,3.32669543]
[1757319917702,0.453,877.89,877.29,3.32669543]
[1757319917906,0.427,877.89,877.29,5.89658993]
[1757319918207,0.484,877.89,877.29,5.89658993]
[1757319921706,0.252,877.88,877.29,2.5698945]
[1757319922006,0.484,877.89,877.26,5.89658993]
[1757319922507,0.295,877.76,877.26,5.89658993]
[1757319922707,0.322,877.76,877.26,5.89658993]
[1757319922908,0.295,877.76,877.26,5.12874534]
[1757319923208,0.295,877.76,877.26,5.89771777]
[1757319923809,0.295,877.78,877.26,5.89771777]
[1757319926107,0.295,877.78,877.26,2.5698945]
[1757319926311,0.295,877.78,877.24,5.89771777]
[1757319926809,0.322,877.78,877.24,5.89771777]
[1757319929415,0.295,877.68,877.18,3.59217749]
[1757319930015,0.322,877.68,877.15,5.89771777]
[1757319931913,0.322,877.68,877.15,2.5698945]
[1757319932115,0.322,877.68,877.11,5.89771777]
[1757319937718,0.322,877.68,877.12,2.5698945]
[1757319937917,0.322,877.68,877.12,5.89771777]
[1757319938118,0.322,877.68,877.12,5.89807115]
[1757319938516,0.322,877.68,877.12,2.5698945]
[1757319938816,0.322,877.68,877.11,5.89807115]
[1757319940715,0.322,877.68,877.12,4.06579477]
[1757319940716,0.19857177,877.54,877.12,4.06579477]
[1757319940919,0.19857177,877.54,877.12,5.89807115]
[1757319941120,0.19857177,877.54,877.12,2.5698945]
[1757319941420,0.19857177,877.54,877.11,5.89807115]
[1757319949621,0.19857177,877.54,877.11,3.32817665]
[1757319952322,0.19857177,877.54,877.11,5.89807115]
[1757319952827,0.19857177,877.54,877.17,3.32817665]
[1757319963032,0.19857177,877.54,877.17,5.89807115]
[1757319964142,0.19857177,877.54,877.17,9.49024864]
[1757319975148,0.19857177,877.54,877.17,6.92035414]
[1757319975652,0.19857177,877.54,877.17,3.32817665]
[1757319976949,0.19857177,877.54,877.17,2.55885084]
[1757319977254,0.19857177,877.54,877.12,5.89807115]
[1757319977650,0.19857177,877.54,877.12,3.32817665]
[1757319983254,0.19857177,877.54,877.12,5.89807115]
[1757319984854,0.19857177,877.54,877.12,9.49024864]
[1757319988057,0.19857177,877.54,877.13,4.06860211]
[1757319988261,0.19857177,877.54,877.13,3.32817665]
[1757319997867,0.19857177,877.54,877.13,5.89807115]
[1757319999368,0.19857177,877.54,877.14,6.63886987]
[1757319999570,0.19857177,877.54,877.14,5.89807115]
[1757320000471,0.19857177,877.54,877.18,3.32817665]
[1757320001067,0.19857177,877.54,877.18,5.89807115]
[1757320002071,0.19857177,877.54,877.18,3.32817665]
[1757320004074,0.19857177,877.54,877.18,5.89807115]
[1757320004571,0.19857177,877.54,877.18,3.32817665]
[1757320014385,0.19857177,877.54,877.18,5.89807115]
[1757320018594,0.19857177,877.54,877.18,3.32817665]
[1757320019291,0.19857177,877.54,877.18,5.89807115]
[1757320024492,0.19857177,877.54,877.18,9.49024864]
[1757320031096,0.19857177,877.54,877.2,3.32817665]
[1757320031500,0.19857177,877.54,877.2,5.89807115]
[1757320031701,0.19857177,877.54,877.26,3.32817665]
[1757320032001,0.19857177,877.54,877.26,5.89807115]
[1757320032296,0.19857177,877.54,877.3,3.32817665]
[1757320032701,0.19857177,877.54,877.3,5.89807115]
[1757320034905,0.19857177,877.54,877.35,3.32817665]
[1757320035104,0.19857177,877.54,877.35,5.89807115]
[1757320036005,0.19857177,877.54,877.36,4.06861268]
[1757320036205,0.19857177,877.54,877.36,5.89807115]
[1757320038007,0.19857177,877.54,877.37,4.068306]
[1757320038206,0.19857177,877.54,877.37,5.89807115]
[1757320039105,0.19857177,877.54,877.38,0.73994555]
[1757320039304,0.19857177,877.54,877.39,6.6380167]
[1757320039604,0.19857177,877.54,877.39,5.89807115]
[1757320039801,0.19857177,877.54,877.4,6.63786041]
[1757320040004,0.19857177,877.54,877.4,5.89807115]
[1757320042005,0.19857177,877.54,877.41,6.63788276]
[1757320042204,0.19857177,877.54,877.41,5.89807115]
[1757320042402,0.19857177,877.54,877.4,5.89807115]
[1757320045905,0.19857177,877.54,877.4,5.12874534]
[1757320046110,0.19857177,877.54,877.4,5.89767452]
[1757320050312,0.19857177,877.54,877.4,3.32778002]
[1757320050708,0.19857177,877.54,877.4,5.89767452]
[1757320051311,0.19857177,877.54,877.4,3.32778002]
[1757320051716,0.19857177,877.54,877.41,0.73746636]
[1757320051911,0.19857177,877.54,877.41,3.32778002]
[1757320055817,0.19857177,877.54,877.41,5.89767452]
[1757320058727,0.19857177,877.54,877.46,3.32778002]
[1757320059529,0.19857177,877.54,877.46,5.89767452]
[1757320066138,0.19857177,877.54,877.48,3.32778002]
[1757320069436,0.19857177,877.54,877.48,5.89767452]
[1757320069840,0.19857177,877.54,877.47,5.89767452]
[1757320072637,0.19857177,877.54,877.47,2.5698945]
[1757320073042,0.19857177,877.54,877.46,5.89767452]
[1757320079844,0.19857177,877.54,877.47,0.73923136]
[1757320080041,0.19857177,877.54,877.47,3.32778002]
[1757320080242,0.19857177,877.54,877.47,5.89767452]
[1757320081246,0.19857177,877.54,877.49,3.32778002]
[1757320084746,0.19857177,877.54,877.5,4.0672161]
[1757320084949,0.19857177,877.54,877.5,3.32778002]
[1757320091251,0.19857177,877.54,877.5,5.89767452]
[1757320092258,0.5,878.14,877.51,0.74044849]
[1757320092458,0.296,878.14,877.54,3.32778002]
[1757320092658,0.296,878.14,877.54,5.89767452]
[1757320094954,0.296,878.14,877.55,4.0661508]
[1757320095156,0.296,878.14,877.57,3.32778002]
[1757320095558,0.19837424,878.0,877.57,3.32778002]
[1757320097956,0.19837424,878.0,877.57,2.55885084]
[1757320098162,0.19837424,878.0,877.58,4.06636344]
[1757320098361,0.19837424,878.0,877.58,3.32813191]
[1757320099464,0.19837424,878.0,877.59,4.06626929]
[1757320099659,0.19837424,878.0,877.59,3.32813191]
[1757320102265,0.19837424,878.0,877.58,3.32813191]
[1757320102465,0.19837424,878.0,877.59,4.06619999]
[1757320102663,0.19837424,878.0,877.59,3.32813191]
[1757320103863,0.19837424,878.0,877.61,3.32813191]
[1757320105667,0.19837424,878.0,877.62,4.06603521]
[1757320105868,0.19837424,878.0,877.72,3.32813191]
[1757320106068,0.19837424,878.0,877.74,3.32813191]
[1757320106366,0.19837424,878.0,877.75,0.73738391]
[1757320106668,0.19837424,878.0,877.75,3.32813191]
[1757320107170,0.19837424,878.0,877.74,3.32813191]
[1757320108470,0.19837424,878.0,877.75,4.06520825]
[1757320108670,0.19837424,878.0,877.75,3.32813191]
[1757320109770,0.19837424,878.0,877.74,3.32813191]
[1757320109968,0.19837424,878.0,877.75,4.06607155]
[1757320110171,0.19837424,878.0,877.75,3.32813191]
[1757320111072,0.19837424,878.0,877.77,3.32813191]
[1757320115571,0.19837424,878.0,877.77,5.89802641]
[1757320115975,0.19837424,878.0,877.77,3.32813191]
[1757320118877,0.19837424,878.0,877.78,4.06528637]
[1757320119174,0.19837424,878.0,877.81,3.32813191]
[1757320119378,0.19837424,878.0,877.8,3.32813191]
[1757320120077,0.19837424,878.0,877.81,4.06512243]
[1757320120276,0.19837424,878.0,877.81,3.32813191]
[1757320120676,0.19837424,878.0,877.8,3.32813191]
[1757320123176,0.19837424,878.0,877.81,4.06485823]
[1757320123377,0.19837424,878.0,877.81,3.32813191]
[1757320124281,0.19837424,878.0,877.8,3.32813191]
[1757320125181,0.19837424,878.0,877.89,2.30179549]
[1757320125378,0.19837424,878.0,877.89,3.32813191]
[1757320128384,0.19837424,878.0,877.9,0.73591306]
[1757320128580,0.19837424,878.0,877.91,0.73589522]
[1757320128784,0.19837424,878.0,877.98,3.32813191]
[1757320129083,0.19837424,878.0,877.99,4.06384737]
[1757320129483,0.19837424,878.0,877.99,6.63374187]
[1757320144506,0.5,878.67,877.99,3.30560996]
[1757320144801,0.427,878.66,878.02,3.31428582]
[1757320145005,0.427,878.66,878.04,3.31428582]
[1757320145205,0.427,878.66,878.07,3.31428582]
[1757320145401,0.427,878.66,878.07,5.88418032]
[1757320147007,0.5,878.74,878.14,3.31428582]
[1757320147805,0.19837368,878.6,878.14,3.31428582]
[1757320148406,0.19837368,878.6,878.16,3.31428582]
[1757320150207,0.19837368,878.6,878.17,0.73232806]
[1757320150410,0.19837368,878.6,878.19,3.31428582]
[1757320152613,0.19837368,878.6,878.19,3.31369421]
[1757320153609,0.19837368,878.6,878.2,0.7321528]
[1757320153814,0.19837368,878.6,878.29,3.31369421]
[1757320155313,0.19837368,878.6,878.26,3.31369421]
[1757320156315,0.19837368,878.6,878.23,3.31369421]
[1757320156916,0.19837368,878.6,878.24,4.04586952]
[1757320157118,0.19837368,878.6,878.24,3.31369421]
[1757320157315,0.19837368,878.6,878.23,3.31369421]
[1757320158216,0.19837368,878.6,878.24,0.73223779]
[1757320158422,0.19837368,878.6,878.24,3.31369421]
[1757320161921,0.19837368,878.6,878.21,3.31369421]
[1757320164516,0.19837368,878.6,878.22,0.73240974]
[1757320164720,0.19837368,878.6,878.22,3.31369421]
[1757320165317,0.19837368,878.6,878.21,3.31369421]
[1757320165716,0.19837368,878.6,878.22,4.04620501]
[1757320166016,0.19837368,878.6,878.21,3.31369421]
[1757320166622,0.19837368,878.6,878.22,4.04621909]
[1757320166920,0.19837368,878.6,878.21,3.31369421]
[1757320167220,0.19837368,878.6,878.22,4.04621922]
[1757320167417,0.19837368,878.6,878.22,3.31369421]
[1757320167920,0.19837368,878.6,878.21,3.31369421]
[1757320168419,0.19837368,878.6,878.22,4.04628466]
[1757320168622,0.19837368,878.6,878.22,3.31369421]
[1757320168821,0.19837368,878.6,878.21,3.31369421]
[1757320169827,0.19837368,878.6,878.22,4.04630919]
[1757320170024,0.19837368,878.6,878.22,3.31369421]
[1757320171427,0.19837368,878.6,878.21,3.31369421]
[1757320171929,0.19837368,878.6,878.22,6.61629175]
[1757320172129,0.19837368,878.6,878.22,5.88358871]
[1757320172530,0.19837368,878.6,878.21,5.88358871]
[1757320172828,0.19837368,878.6,878.22,4.04644136]
[1757320173028,0.19837368,878.6,878.22,5.88358871]
[1757320179836,0.19837368,878.6,878.22,9.4757662]
[1757320180734,0.19837368,878.6,878.22,5.88358871]
[1757320183938,0.19837368,878.6,878.22,9.4757662]
[1757320184938,0.19837368,878.6,878.22,5.88358871]
[1757320186844,0.19837368,878.6,878.26,5.88358871]
[1757320187545,0.19837368,878.6,878.27,4.047905]
[1757320187743,0.19837368,878.6,878.32,3.31369421]
[1757320187946,0.19837368,878.6,878.32,9.4757662]
[1757320190043,0.19837368,878.6,878.33,10.20991889]
[1757320190254,0.19837368,878.6,878.33,9.4757662]
[1757320195350,0.19837368,878.6,878.33,5.88358871]
[1757320198249,0.19837368,878.6,878.33,9.4757662]
[1757320198452,0.19837368,878.6,878.33,6.16207199]
[1757320198751,0.19837368,878.6,878.33,3.59217749]
[1757320199453,0.19837368,878.6,878.28,5.88358871]
[1757320200048,0.19837368,878.6,878.28,4.86380846]
[1757320200254,0.19837368,878.6,878.28,1.03000195]
[1757320200451,0.19837368,878.6,877.61,5.139789]
[1757320201263,0.19837368,878.6,876.97,3.59217749]
[1757320201453,0.19837368,878.6,876.98,3.59217749]
[1757320202552,0.19837368,878.6,877.13,3.59217749]
[1757320204552,0.19837368,878.6,877.44,3.59217749]
[1757320205659,0.19837368,878.6,877.39,3.59217749]
[1757320206557,0.19837368,878.6,876.86,5.139789]
[1757320207462,0.19837368,878.6,876.42,3.59217749]
[1757320207661,0.19837368,878.6,876.11,3.59217749]
[1757320209162,0.19837368,878.6,876.72,2.56021479]
[1757320209657,0.19837368,878.6,876.73,2.56021479]
[1757320210460,0.19837368,878.6,876.87,2.56021479]
[1757320211261,0.19837368,878.6,876.3,3.59217749]
[1757320211262,0.19837368,878.6,876.86,2.56021479]
[1757320211863,0.19837368,878.6,876.93,2.56021479]
[1757320212362,0.19837368,878.6,877.15,2.56021479]
[1757320213862,0.19837368,878.6,877.17,2.56021479]
[1757320214258,0.19837368,878.6,877.22,2.56021479]
[1757320214964,0.19837368,878.6,877.28,2.56021479]
[1757320215458,0.52037368,878.6,876.77,3.59217749]
[1757320215965,0.52037368,878.6,876.72,2.56021479]
[1757320216464,0.52037368,878.6,876.81,2.56021479]
[1757320216664,0.54737368,878.6,876.81,2.56021479]
[1757320216961,0.52037368,878.6,876.88,2.56021479]
[1757320217460,0.52037368,878.6,876.87,2.56021479]
[1757320217862,0.49337368,878.6,876.87,2.56021479]
[1757320218065,0.49337368,878.6,876.29,3.59217749]
[1757320218066,0.52037368,878.6,877.02,2.56021479]
[1757320218467,0.52037368,878.6,877.36,2.56021479]
[1757320219668,0.52037368,878.6,877.26,2.56021479]
[1757320220065,0.52037368,878.6,877.18,2.56021479]
[1757320220267,0.52037368,878.6,878.05,1.53657616]
[1757320220565,0.52037368,878.6,878.05,0.10868344]
[1757320220765,0.52037368,878.6,877.02,2.56021479]
[1757320221265,0.52037368,878.6,876.78,2.56021479]
[1757320221669,0.52037368,878.6,876.72,2.56021479]
[1757320222169,0.52037368,878.6,876.58,2.56021479]
[1757320222965,0.46637368,878.6,876.58,2.56021479]
[1757320223173,0.19837368,878.6,876.53,2.56021479]
[1757320223672,0.19837368,878.6,876.52,2.56021479]
[1757320224175,0.19837368,878.6,876.53,2.56021479]
[1757320224869,0.19837368,878.6,876.45,2.56021479]
[1757320225168,0.19837368,878.6,876.46,2.56021479]
[1757320226667,0.19837368,878.6,876.51,2.56021479]
[1757320227371,0.19837368,878.6,876.59,2.56021479]
[1757320227773,0.19837368,878.6,876.64,2.56021479]
[1757320228375,0.19837368,878.6,877.55,2.56021479]
[1757320228870,0.19837368,878.6,877.56,2.56021479]
[1757320229376,0.19837368,878.6,877.62,2.56021479]
[1757320229775,0.19837368,878.6,877.74,2.56021479]
[1757320230177,0.19837368,878.6,878.16,1.02346928]
[1757320230377,0.19837368,878.6,877.77,2.56021479]
[1757320230973,0.19837368,878.6,877.79,2.56021479]
[1757320231384,0.19837368,878.6,877.75,2.56021479]
[1757320231873,0.19837368,878.6,877.73,2.56021479]
[1757320232677,0.19837368,878.6,877.48,2.56021479]
[1757320233076,0.19837368,878.6,877.49,2.56021479]
[1757320234074,0.19837368,878.6,877.48,2.56021479]
[1757320234678,0.19837368,878.6,877.47,2.56021479]
[1757320235078,0.19837368,878.6,877.62,2.56021479]
[1757320235579,0.19837368,878.6,877.39,2.56021479]
[1757320236079,0.19837368,878.6,877.24,2.56021479]
[1757320236579,0.19837368,878.6,877.25,2.56021479]
[1757320237176,0.19837368,878.6,877.14,2.56021479]
[1757320239280,0.19837368,878.6,876.76,2.56021479]
[1757320239780,0.19837368,878.6,876.8,2.56021479]
[1757320240380,0.19837368,878.6,878.38,1.53329831]
[1757320240784,0.19837368,878.6,878.28,1.53329831]
[1757320240984,0.19837368,878.6,878.29,1.53329831]
[1757320241484,0.19837368,878.6,878.28,1.53329831]
[1757320241785,0.19837368,878.6,878.33,1.53329831]
[1757320241985,0.19837368,878.6,878.02,1.53329831]
[1757320242381,0.19837368,878.6,878.01,1.53329831]
[1757320243386,0.19837368,878.6,877.95,1.53329831]
[1757320243684,0.19837368,878.6,876.95,2.56021479]
[1757320243685,0.19837368,878.6,877.93,1.53329831]
[1757320244183,0.19837368,878.6,877.9,1.53329831]
[1757320244386,0.19837368,878.6,877.89,1.53329831]
[1757320244583,0.19837368,878.6,877.86,1.53329831]
[1757320245483,0.19837368,878.6,877.89,1.53329831]
[1757320245683,0.19837368,878.6,877.85,1.53329831]
[1757320246485,0.19837368,878.6,877.84,1.53329831]
[1757320246790,0.19837368,878.6,877.83,1.53329831]
[1757320247086,0.19837368,878.6,877.87,1.53329831]
[1757320247285,0.19837368,878.6,877.83,1.53329831]
[1757320248894,0.19837368,878.6,877.81,1.53329831]
[1757320250189,0.19837368,878.6,877.84,1.53329831]
[1757320250593,0.19837368,878.6,877.81,1.53329831]
[1757320250790,0.19837368,878.6,877.79,1.53329831]
[1757320251191,0.19837368,878.6,877.8,1.53329831]
[1757320251496,0.19837368,878.6,877.81,1.53329831]
[1757320251794,0.19837368,878.6,877.79,1.53329831]
[1757320251993,0.19837368,878.6,877.97,1.53329831]
[1757320252198,0.19837368,878.6,877.98,1.53329831]
[1757320253911,0.19837368,878.6,877.97,1.53329831]
[1757320254397,0.19837368,878.6,877.99,1.53329831]
[1757320255001,0.19837368,878.6,878.09,1.53329831]
[1757320255201,0.19837368,878.6,878.19,1.53329831]
[1757320255501,0.19837368,878.6,878.18,1.53329831]